bitfinex/quotes_BTCUSD_20250129
["timestamp","ask_amount","ask_price","bid_price","bid_amount"]
[1738155359956,0.15898722,102330.0,102320.0,0.40052926]
[1738155361139,0.15898722,102330.0,102320.0,0.47279873]
[1738155361349,0.15898722,102330.0,102320.0,0.40052926]
[1738155361583,0.15898722,102330.0,102320.0,0.18166179]
[1738155361784,0.32857122,102330.0,102320.0,0.18166179]
[1738155361995,0.32857122,102330.0,102320.0,0.17966179]
[1738155362229,0.2797264,102330.0,102320.0,0.17966179]
[1738155362428,0.36685645,102330.0,102320.0,0.17966179]
[1738155363954,0.36685645,102330.0,102320.0,0.17866179]
[1738155364896,0.36685645,102330.0,102320.0,0.32525979]
[1738155365022,0.36685645,102330.0,102320.0,0.17866179]
[1738155365676,0.36685645,102330.0,102320.0,0.32525979]
[1738155365873,0.36685645,102330.0,102320.0,0.17866179]
[1738155367082,0.36685645,102330.0,102320.0,0.32525979]
[1738155367262,0.36685645,102330.0,102320.0,0.17866179]
[1738155368990,0.6715486,102330.0,102320.0,0.13346179]
[1738155369201,0.8215486,102330.0,102320.0,0.05656179]
[1738155369412,0.8315486,102330.0,102320.0,0.05656179]
[1738155369621,0.78303666,102330.0,102320.0,0.05656179]
[1738155370443,0.78403666,102330.0,102320.0,0.05656179]
[1738155371666,0.69790661,102330.0,102320.0,0.05656179]
[1738155376970,0.80799884,102330.0,102320.0,0.05656179]
[1738155377171,0.9053556,102330.0,102320.0,0.05656179]
[1738155378205,0.79526337,102330.0,102320.0,0.05656179]
[1738155378405,0.69790661,102330.0,102320.0,0.05656179]
[1738155378916,0.70790661,102330.0,102320.0,0.05656179]
[1738155379755,0.71790661,102330.0,102320.0,0.05656179]
[1738155380171,0.70790661,102330.0,102320.0,0.05656179]
[1738155380595,0.80526337,102330.0,102320.0,0.05656179]
[1738155380931,0.71790661,102330.0,102320.0,0.05656179]
[1738155381489,0.75702161,102330.0,102320.0,0.05656179]
[1738155382424,0.86711384,102330.0,102320.0,0.05656179]
[1738155382747,0.75702161,102330.0,102320.0,0.05656179]
[1738155386767,0.86711384,102330.0,102320.0,0.05656179]
[1738155387109,0.9644706,102330.0,102320.0,0.05656179]
[1738155388593,0.86711384,102330.0,102320.0,0.05656179]
[1738155389446,0.033,102320.0,102300.0,0.12799862]
[1738155389660,0.53797283,102310.0,102300.0,0.12799862]
[1738155389926,0.53694839,102310.0,102300.0,0.08279862]
[1738155390320,0.66704062,102310.0,102300.0,0.00029862]
[1738155390549,0.173,102300.0,102280.0,0.0001423]
[1738155390771,0.28075767,102290.0,102280.0,0.0001423]
[1738155390990,0.27973323,102290.0,102280.0,0.0001423]
[1738155392074,0.27973323,102290.0,102280.0,0.00028747]
[1738155392280,0.37797639,102290.0,102280.0,0.00028747]
[1738155392692,0.62533315,102290.0,102280.0,0.00028747]
[1738155392890,0.72193315,102290.0,102280.0,0.00028747]
[1738155394408,0.64533315,102290.0,102280.0,0.00028747]
[1738155394842,0.54697639,102290.0,102280.0,0.00028747]
[1738155395051,0.55397639,102290.0,102280.0,0.00128747]
[1738155395230,0.54697639,102290.0,102280.0,0.00028747]
[1738155395590,0.54897639,102290.0,102280.0,0.00028747]
[1738155395844,0.56597639,102290.0,102280.0,0.00128747]
[1738155396253,0.56397639,102290.0,102280.0,0.00128747]
[1738155396460,0.57683694,102290.0,102280.0,0.00128747]
[1738155397172,0.66378554,102290.0,102280.0,0.00128747]
[1738155397394,0.66378554,102290.0,102280.0,0.00442873]
[1738155397395,0.7325912,102290.0,102280.0,0.00442873]
[1738155398656,0.7125912,102290.0,102280.0,0.00442873]
[1738155399057,0.43253813,102290.0,102280.0,0.00442873]
[1738155399333,0.15565397,102290.0,102280.0,0.28008473]
[1738155399651,0.30565397,102290.0,102280.0,0.28008473]
[1738155399875,0.15365397,102290.0,102280.0,0.28008473]
[1738155400063,0.15465397,102290.0,102280.0,0.28008473]
[1738155400266,0.30465397,102290.0,102280.0,0.28008473]
[1738155400465,0.15465397,102290.0,102280.0,0.28008473]
[1738155400672,0.01786055,102290.0,102280.0,0.28008473]
[1738155400873,0.04086055,102290.0,102280.0,0.28008473]
[1738155401078,0.03386055,102290.0,102280.0,0.27908473]
[1738155401317,0.03786055,102290.0,102280.0,0.27908473]
[1738155402010,0.00429883,102290.0,102280.0,0.27908473]
[1738155402260,0.00029883,102290.0,102280.0,0.37632789]
[1738155402553,0.00329883,102290.0,102280.0,0.27908473]
[1738155402769,0.02729883,102290.0,102280.0,0.27908473]
[1738155404649,0.03729883,102290.0,102280.0,0.27908473]
[1738155411680,0.18496427,102290.0,102280.0,0.27908473]
[1738155412760,0.03729883,102290.0,102280.0,0.27908473]
[1738155421352,0.03729883,102290.0,102280.0,0.38917696]
[1738155421772,0.03729883,102290.0,102280.0,0.27908473]
[1738155429175,0.03729883,102290.0,102280.0,0.48642012]
[1738155429176,0.01429883,102290.0,102280.0,0.48642012]
[1738155429621,0.01429883,102290.0,102280.0,0.73642012]
[1738155430231,0.01329883,102290.0,102280.0,0.73642012]
[1738155430448,0.01029883,102290.0,102280.0,0.73642012]
[1738155430651,8.3e-07,102290.0,102280.0,0.77757367]
[1738155431062,8.3e-07,102290.0,102280.0,0.89711626]
[1738155431185,6.6e-07,102290.0,102280.0,0.89711626]
[1738155433958,6.6e-07,102290.0,102280.0,0.90011626]
[1738155434129,6.6e-07,102290.0,102280.0,0.90111626]
[1738155434299,6.6e-07,102290.0,102280.0,0.89811626]
[1738155434500,6.6e-07,102290.0,102280.0,0.90011626]
[1738155434815,6.6e-07,102290.0,102280.0,0.90111626]
[1738155435516,6.6e-07,102290.0,102280.0,0.902678]
[1738155436510,6.6e-07,102290.0,102280.0,0.652678]
[1738155436714,6.6e-07,102290.0,102280.0,0.63129766]
[1738155436915,6.6e-07,102290.0,102280.0,0.78129766]
[1738155439317,6.6e-07,102290.0,102280.0,0.77221766]
[1738155439539,6.6e-07,102290.0,102280.0,0.78129766]
[1738155441347,6.6e-07,102290.0,102280.0,0.77221766]
[1738155441510,6.6e-07,102290.0,102280.0,0.78129766]
[1738155442791,6.6e-07,102290.0,102280.0,0.77221766]
[1738155443052,6.6e-07,102290.0,102280.0,0.54096963]
[1738155443305,6.6e-07,102290.0,102280.0,0.39269865]
[1738155443757,6.6e-07,102290.0,102280.0,0.39047858]
[1738155444095,6.6e-07,102290.0,102280.0,0.28415542]
[1738155444360,0.16964166,102290.0,102280.0,0.01071949]
[1738155444631,0.41063389,102290.0,102280.0,0.01071949]
[1738155444841,0.41063389,102290.0,102280.0,0.00849942]
[1738155445476,0.50787705,102290.0,102280.0,0.00549942]
[1738155445680,0.65787705,102290.0,102280.0,0.00549942]
[1738155445886,0.66087705,102290.0,102280.0,0.00549942]
[1738155446103,0.66087705,102290.0,102280.0,0.00449942]
[1738155446335,0.66187705,102290.0,102280.0,0.00449942]
[1738155446745,0.67187705,102290.0,102280.0,0.00449942]
[1738155446951,0.69187705,102290.0,102280.0,0.00449942]
[1738155447574,0.74572187,102290.0,102280.0,0.00449942]
[1738155447956,0.7519925,102290.0,102280.0,0.00449942]
[1738155448314,0.7529925,102290.0,102280.0,0.00449942]
[1738155449207,0.77274836,102290.0,102280.0,0.00449942]
[1738155450652,0.8101346,102290.0,102280.0,0.00449942]
[1738155450855,0.7901346,102290.0,102280.0,0.00449942]
[1738155451834,0.82944337,102290.0,102280.0,0.00449942]
[1738155452749,0.43427,102270.0,102260.0,0.05624724]
[1738155452924,0.43427,102270.0,102240.0,0.0001423]
[1738155452925,0.401599,102250.0,102240.0,0.0001423]
[1738155453128,0.60893439,102250.0,102240.0,0.0001423]
[1738155454374,0.61893439,102250.0,102240.0,0.00062504]
[1738155455001,0.60993439,102250.0,102240.0,0.00062504]
[1738155455140,0.61993439,102250.0,102240.0,0.00062504]
[1738155455371,0.60993439,102250.0,102240.0,0.00062504]
[1738155457945,0.62056325,102250.0,102240.0,0.00062504]
[1738155458741,0.66940807,102250.0,102240.0,0.00062504]
[1738155459958,0.49026491,102250.0,102240.0,0.00062504]
[1738155461712,0.38017268,102250.0,102240.0,0.00062504]
[1738155461909,0.38517268,102250.0,102240.0,0.00062504]
[1738155465614,0.38517268,102250.0,102240.0,0.08072504]
[1738155466459,0.38517268,102250.0,102240.0,0.08172504]
[1738155466657,0.38417268,102250.0,102240.0,0.08172504]
[1738155466860,0.38417268,102250.0,102240.0,1.20395262]
[1738155467013,0.38417268,102250.0,102240.0,1.05923962]
[1738155467645,0.38417268,102250.0,102240.0,1.20595262]
[1738155467862,0.38417268,102250.0,102240.0,1.05923962]
[1738155468066,0.38417268,102250.0,102240.0,1.20595262]
[1738155468274,0.38417268,102250.0,102240.0,1.204876]
[1738155469278,0.38417268,102250.0,102240.0,1.058163]
[1738155469437,0.38417268,102250.0,102240.0,1.204876]
[1738155475035,0.23747368,102250.0,102240.0,1.204876]
[1738155475451,0.23747368,102250.0,102240.0,1.251976]
[1738155476509,0.38417268,102250.0,102240.0,1.251976]
[1738155476653,0.23747368,102250.0,102240.0,1.251976]
[1738155477257,0.06447368,102250.0,102240.0,1.36206823]
[1738155477612,0.05384482,102250.0,102240.0,1.34921916]
[1738155477810,0.05384482,102250.0,102240.0,1.34936146]
[1738155478265,0.005,102250.0,102240.0,1.34636146]
[1738155481027,0.005,102250.0,102240.0,1.45645369]
[1738155483426,0.005,102250.0,102240.0,0.48093911]
[1738155483840,0.006,102250.0,102240.0,0.48093911]
[1738155483988,0.009,102250.0,102240.0,0.48093911]
[1738155484620,0.0088,102250.0,102240.0,0.48093911]
[1738155490438,0.00909883,102250.0,102240.0,0.48093911]
[1738155493143,0.00909883,102250.0,102240.0,0.59103134]
[1738155493566,0.00909883,102250.0,102240.0,0.74103134]
[1738155493820,0.00909883,102250.0,102240.0,0.77147354]
[1738155494239,0.00809883,102250.0,102240.0,0.77147354]
[1738155494444,0.00029883,102250.0,102240.0,0.77147354]
[1738155495447,0.00029883,102250.0,102240.0,0.78186802]
[1738155495678,0.00029883,102250.0,102240.0,0.78286802]
[1738155496447,0.00029883,102250.0,102240.0,0.75242582]
[1738155499851,0.00029883,102250.0,102240.0,0.0011423]
[1738155500059,0.32629006,102250.0,102240.0,0.0011423]
[1738155500268,0.70327804,102250.0,102240.0,0.0011423]
[1738155501354,0.59318581,102250.0,102240.0,0.0011423]
[1738155501901,0.69318581,102250.0,102240.0,0.0001423]
[1738155502312,0.69418581,102250.0,102240.0,0.0001423]
[1738155503343,0.80427804,102250.0,102240.0,0.0001423]
[1738155503705,0.80327804,102250.0,102240.0,0.0001423]
[1738155503885,0.80427804,102250.0,102240.0,0.0001423]
[1738155505082,0.80327804,102250.0,102240.0,0.0001423]
[1738155505879,0.80427804,102250.0,102240.0,0.0001423]
[1738155506869,0.80427804,102250.0,102240.0,0.00459575]
[1738155509527,0.80907804,102250.0,102240.0,0.00459575]
[1738155511177,0.69898581,102250.0,102240.0,0.00459575]
[1738155513108,0.68197804,102250.0,102240.0,0.00459575]
[1738155516986,0.47464265,102250.0,102240.0,0.00459575]
[1738155517956,0.58473488,102250.0,102240.0,0.00459575]
[1738155519100,0.47464265,102250.0,102240.0,0.00459575]
[1738155521330,0.47364265,102250.0,102240.0,0.00459575]
[1738155521546,0.47364265,102250.0,102240.0,0.00659575]
[1738155522221,0.47364265,102250.0,102240.0,0.15330875]
[1738155522424,0.32364265,102250.0,102240.0,0.23070875]
[1738155523383,0.17694365,102250.0,102240.0,0.23070875]
[1738155523888,0.17694365,102250.0,102240.0,0.27940875]
[1738155533566,0.15394365,102250.0,102240.0,0.27940875]
[1738155535049,0.15394365,102250.0,102240.0,0.37665191]
[1738155537878,0.15394365,102250.0,102240.0,0.3775768]
[1738155558956,0.15394365,102250.0,102240.0,0.44992363]
[1738155562087,0.15394365,102250.0,102240.0,0.3775768]
[1738155569430,0.32364265,102250.0,102240.0,0.00852064]
[1738155572561,0.39598948,102250.0,102240.0,0.00852064]
[1738155572769,0.32364265,102250.0,102240.0,0.00852064]
[1738155572998,0.41033766,102250.0,102240.0,0.00852064]
[1738155576535,0.55878449,102250.0,102240.0,0.00852064]
[1738155578522,0.57792475,102250.0,102240.0,0.00852064]
[1738155579897,0.41033766,102250.0,102240.0,0.00852064]
[1738155587792,0.48268449,102250.0,102240.0,0.00852064]
[1738155588566,0.41033766,102250.0,102240.0,0.00852064]
[1738155588975,0.48268449,102250.0,102240.0,0.00852064]
[1738155593103,0.48968449,102250.0,102240.0,0.00852064]
[1738155595633,0.41733766,102250.0,102240.0,0.00852064]
[1738155598649,0.48968449,102250.0,102240.0,0.00852064]
[1738155598911,0.27063866,102250.0,102240.0,0.20133364]
[1738155599094,0.27063866,102250.0,102240.0,0.27983364]
[1738155599691,0.24763866,102250.0,102240.0,0.27983364]
[1738155600101,0.27063866,102250.0,102240.0,0.27983364]
[1738155600300,0.27041866,102250.0,102240.0,0.27983364]
[1738155600683,0.27041866,102250.0,102240.0,0.35218047]
[1738155601080,0.27041866,102250.0,102240.0,0.27983364]
[1738155601526,0.27041866,102250.0,102240.0,0.27783364]
[1738155601875,0.22457384,102250.0,102240.0,0.27783364]
[1738155602262,0.22157384,102250.0,102240.0,0.27783364]
[1738155602563,0.22157384,102250.0,102240.0,0.34918047]
[1738155602793,0.13487883,102250.0,102240.0,0.34918047]
[1738155603226,0.13587883,102250.0,102240.0,0.34918047]
[1738155603790,0.13487883,102250.0,102240.0,0.34918047]
[1738155607749,0.11187883,102250.0,102240.0,0.44642363]
[1738155607953,0.11187883,102250.0,102240.0,0.51877046]
[1738155609104,0.11487883,102250.0,102240.0,0.51877046]
[1738155609302,0.11487883,102250.0,102240.0,0.66977046]
[1738155609743,0.11487883,102250.0,102240.0,0.66877046]
[1738155610110,0.11587883,102250.0,102240.0,0.66877046]
[1738155611100,0.11587883,102250.0,102240.0,0.67879963]
[1738155611904,0.11587883,102250.0,102240.0,0.68783963]
[1738155613031,0.11587883,102250.0,102240.0,0.76018646]
[1738155613234,0.11587883,102250.0,102240.0,0.86018646]
[1738155613235,0.07675883,102250.0,102240.0,0.86018646]
[1738155613435,0.07675883,102250.0,102240.0,0.99063429]
[1738155614077,0.03763883,102250.0,102240.0,0.99063429]
[1738155614386,8.3e-07,102250.0,102240.0,0.97018646]
[1738155614613,0.0169655,102260.0,102250.0,0.424999]
[1738155614813,0.0169655,102260.0,102250.0,1.96071288]
[1738155615026,0.0169655,102260.0,102250.0,2.05795604]
[1738155615447,0.0169655,102260.0,102250.0,2.13030287]
[1738155615651,0.0169655,102260.0,102250.0,2.15460287]
[1738155616263,0.0169655,102260.0,102250.0,2.15560287]
[1738155616606,0.0169655,102260.0,102250.0,2.12104728]
[1738155616982,0.0169655,102260.0,102250.0,2.12404728]
[1738155617500,5e-07,102260.0,102250.0,2.33418535]
[1738155617706,5e-07,102260.0,102250.0,2.36418535]
[1738155617915,5e-07,102260.0,102250.0,2.3704807]
[1738155619184,0.00029933,102260.0,102250.0,2.3704807]
[1738155619799,3.3e-07,102260.0,102250.0,2.3704807]
[1738155620857,3.3e-07,102260.0,102250.0,2.21508263]
[1738155622078,3.3e-07,102260.0,102250.0,2.23478612]
[1738155623014,3.3e-07,102260.0,102250.0,2.22574612]
[1738155623203,3.3e-07,102260.0,102250.0,2.23478612]
[1738155623404,3.3e-07,102260.0,102250.0,2.10604263]
[1738155623787,3.3e-07,102260.0,102250.0,2.11508263]
[1738155625788,3.3e-07,102260.0,102250.0,1.95604263]
[1738155626016,3.3e-07,102260.0,102250.0,1.71760456]
[1738155627299,3.3e-07,102260.0,102250.0,1.71460456]
[1738155627480,3.3e-07,102260.0,102250.0,1.82474263]
[1738155627680,3.3e-07,102260.0,102250.0,1.82374263]
[1738155627897,3.3e-07,102260.0,102250.0,1.82474263]
[1738155628661,3.3e-07,102260.0,102250.0,1.71460456]
[1738155628862,0.16968433,102260.0,102250.0,0.98280993]
[1738155629064,0.21928433,102260.0,102250.0,0.98280993]
[1738155630629,0.50856556,102260.0,102250.0,0.00743765]
[1738155630844,0.66864919,102260.0,102250.0,0.00643765]
[1738155631049,0.71749401,102260.0,102250.0,0.00643765]
[1738155631713,0.72749401,102260.0,102250.0,0.00643765]
[1738155632438,0.72749401,102260.0,102250.0,0.00743765]
[1738155632669,0.72749401,102260.0,102250.0,0.00943765]
[1738155634076,0.74736803,102260.0,102250.0,0.00943765]
[1738155637678,0.76736803,102260.0,102250.0,0.00943765]
[1738155639172,0.84085967,102260.0,102250.0,0.00943765]
[1738155639595,0.75736803,102260.0,102250.0,0.00943765]
[1738155640043,0.84406304,102260.0,102250.0,0.00943765]
[1738155640244,0.85406304,102260.0,102250.0,0.00943765]
[1738155642069,0.76736803,102260.0,102250.0,0.00943765]
[1738155646321,0.74736803,102260.0,102250.0,0.00943765]
[1738155646469,0.76736803,102260.0,102250.0,0.00943765]
[1738155648942,0.76736803,102260.0,102250.0,0.00929783]
[1738155649553,0.76736803,102260.0,102250.0,0.00837762]
[1738155650233,0.146727,102230.0,102220.0,0.277656]
[1738155650461,0.169727,102230.0,102220.0,0.277656]
[1738155652022,0.169727,102230.0,102180.0,0.03049243]
[1738155652023,0.1411,102190.0,102180.0,0.03049243]
[1738155652245,0.296814,102170.0,102160.0,8e-07]
[1738155652475,0.296814,102170.0,102140.0,0.0001423]
[1738155652476,0.146842,102150.0,102140.0,0.0001423]
[1738155652687,0.35524767,102150.0,102140.0,0.0001423]
[1738155652895,0.35422323,102150.0,102140.0,0.0001423]
[1738155653106,0.25698007,102150.0,102140.0,0.0001423]
[1738155653331,0.587357,102160.0,102140.0,0.1469953]
[1738155653332,0.146831,102160.0,102140.0,0.1469953]
[1738155653549,0.00048271,102160.0,102150.0,0.0819]
[1738155653756,0.00048271,102160.0,102150.0,0.19203807]
[1738155653975,0.00048271,102160.0,102150.0,0.33985893]
[1738155654183,0.00048271,102160.0,102150.0,0.38788007]
[1738155654407,0.00048271,102160.0,102150.0,0.37498516]
[1738155655048,0.00048271,102160.0,102150.0,0.48512323]
[1738155655271,0.00048271,102160.0,102150.0,1.46707616]
[1738155655489,0.00048271,102160.0,102150.0,1.47631616]
[1738155656385,0.00148271,102160.0,102150.0,1.47631616]
[1738155656806,0.00048271,102160.0,102150.0,1.47631616]
[1738155657024,0.00048271,102160.0,102150.0,1.83645423]
[1738155657234,0.00048271,102160.0,102150.0,2.3243467]
[1738155657647,0.342477,102200.0,102190.0,0.0783]
[1738155657837,4.826e-05,102200.0,102190.0,0.32232816]
[1738155658937,4.826e-05,102200.0,102190.0,1.29905365]
[1738155660066,0.00304826,102200.0,102190.0,1.78690612]
[1738155660270,0.00404826,102200.0,102190.0,1.78690612]
[1738155660486,0.00404826,102200.0,102190.0,1.89704419]
[1738155660690,0.00404826,102200.0,102190.0,1.78690612]
[1738155661954,0.00404826,102200.0,102190.0,1.89704419]
[1738155662989,0.00404826,102200.0,102190.0,1.79980103]
[1738155663197,0.15081926,102200.0,102190.0,1.79980103]
[1738155663615,0.00404826,102200.0,102190.0,1.79980103]
[1738155663872,0.15081926,102200.0,102190.0,1.79980103]
[1738155665870,0.1511183,102200.0,102190.0,1.79980103]
[1738155666075,0.1511183,102200.0,102190.0,1.80331406]
[1738155666680,0.0043473,102200.0,102190.0,1.90055722]
[1738155675859,0.1511183,102200.0,102190.0,0.98023852]
[1738155676065,0.1511183,102200.0,102190.0,1.12702352]
[1738155676266,0.0043473,102200.0,102190.0,1.12702352]
[1738155676577,0.0043473,102200.0,102190.0,1.33440475]
[1738155676783,0.0043473,102200.0,102190.0,1.41700475]
[1738155678056,0.09104231,102200.0,102190.0,1.41700475]
[1738155678508,0.09104231,102200.0,102190.0,1.90485722]
[1738155680349,0.07985789,102200.0,102190.0,2.05485722]
[1738155680560,0.390504,102250.0,102240.0,0.146713]
[1738155680709,0.04884482,102250.0,102240.0,0.34247363]
[1738155680924,0.04884482,102250.0,102240.0,0.14685763]
[1738155681120,0.19884482,102250.0,102240.0,0.15145452]
[1738155681328,0.34554382,102250.0,102240.0,0.15145452]
[1738155681679,0.19554382,102250.0,102240.0,0.15145452]
[1738155681883,0.04884482,102250.0,102240.0,0.15145452]
[1738155682079,0.04884482,102250.0,102240.0,1.1269691]
[1738155682080,0.19884482,102250.0,102240.0,1.1269691]
[1738155682321,0.04884482,102250.0,102240.0,1.23710717]
[1738155682947,0.04984482,102250.0,102240.0,1.23710717]
[1738155683158,0.04884482,102250.0,102240.0,1.23710717]
[1738155683480,0.04884482,102250.0,102240.0,1.23910717]
[1738155684307,0.04884482,102250.0,102240.0,1.24010717]
[1738155686733,0.04884482,102250.0,102240.0,1.1299691]
[1738155689820,0.04914386,102250.0,102240.0,1.1299691]
[1738155690236,0.19584286,102250.0,102240.0,1.1299691]
[1738155690396,0.19584286,102250.0,102240.0,1.24010717]
[1738155690791,0.04914386,102250.0,102240.0,1.24010717]
[1738155692431,0.19584286,102250.0,102240.0,1.24010717]
[1738155692642,0.04914386,102250.0,102240.0,1.24010717]
[1738155693648,0.04914386,102250.0,102240.0,1.28900317]
[1738155705668,0.04914386,102250.0,102240.0,1.4963844]
[1738155705879,0.04914386,102250.0,102240.0,1.5746844]
[1738155706298,0.04914386,102250.0,102240.0,1.5726844]
[1738155706501,0.04914386,102250.0,102240.0,1.5716844]
[1738155706705,0.00429904,102250.0,102240.0,1.5716844]
[1738155707080,0.00129904,102250.0,102240.0,1.5716844]
[1738155707282,0.00029904,102250.0,102240.0,1.5716844]
[1738155707693,0.00129904,102250.0,102240.0,1.5716844]
[1738155708550,0.00429904,102250.0,102240.0,1.5716844]
[1738155710867,0.00429904,102250.0,102240.0,0.59616982]
[1738155711890,0.00429904,102250.0,102240.0,0.74616982]
[1738155712087,0.00429904,102250.0,102240.0,0.79356982]
[1738155712377,0.00429904,102250.0,102240.0,0.82401015]
[1738155712761,0.00429904,102250.0,102240.0,0.92401015]
[1738155713022,0.00429904,102250.0,102240.0,0.92415245]
[1738155713446,0.00329904,102250.0,102240.0,0.92415245]
[1738155714126,4e-08,102250.0,102240.0,0.92415245]
[1738155715090,0.016667,102260.0,102250.0,0.225899]
[1738155715296,0.016667,102260.0,102250.0,1.97848545]
[1738155715910,0.016667,102260.0,102250.0,2.12848545]
[1738155716344,0.017667,102260.0,102250.0,2.22848545]
[1738155716578,0.020667,102260.0,102250.0,2.22848545]
[1738155717720,0.15,102300.0,102270.0,0.0783]
[1738155717895,0.54097882,102300.0,102290.0,0.146639]
[1738155718093,0.54097882,102300.0,102280.0,0.45230707]
[1738155718297,0.54097882,102300.0,102280.0,0.537696]
[1738155718641,0.54097882,102300.0,102280.0,0.733228]
[1738155718849,0.04884482,102300.0,102290.0,0.43582223]
[1738155719094,0.04932989,102300.0,102290.0,1.41263095]
[1738155719484,0.05332989,102300.0,102290.0,1.90048342]
[1738155719693,0.05032989,102300.0,102290.0,1.90048342]
[1738155719950,0.04932989,102300.0,102290.0,1.90048342]
[1738155720130,0.05232989,102300.0,102290.0,1.90048342]
[1738155720341,0.04932989,102300.0,102290.0,2.20682149]
[1738155720707,0.04932989,102300.0,102290.0,2.20982149]
[1738155721250,0.04924102,102300.0,102290.0,2.20982149]
[1738155721563,0.00048507,102300.0,102290.0,2.20982149]
[1738155722124,0.00048507,102300.0,102290.0,2.20582149]
[1738155722324,7e-08,102300.0,102290.0,2.21582149]
[1738155722535,7e-08,102300.0,102290.0,2.21783474]
[1738155722729,7e-08,102300.0,102290.0,2.21683474]
[1738155723538,7e-08,102300.0,102290.0,1.9965586]
[1738155724114,7e-08,102300.0,102290.0,2.1181583]
[1738155725198,0.0001424,102330.0,102320.0,0.25673607]
[1738155725401,0.00028787,102330.0,102320.0,1.94754628]
[1738155726079,0.00028787,102330.0,102320.0,1.95078159]
[1738155729646,0.00128787,102330.0,102320.0,1.95078159]
[1738155729790,0.00123461,102330.0,102320.0,1.95078159]
[1738155729990,0.00323461,102330.0,102320.0,1.95078159]
[1738155732077,0.00323461,102330.0,102320.0,1.12534789]
[1738155732295,0.00323461,102330.0,102320.0,0.97874989]
[1738155732296,0.14981861,102330.0,102320.0,0.97874989]
[1738155732510,0.18321861,102330.0,102320.0,0.97551458]
[1738155733033,0.18321861,102330.0,102300.0,0.321693]
[1738155733034,0.146598,102320.0,102300.0,0.615208]
[1738155733235,0.34309544,102320.0,102300.0,0.63485116]
[1738155733443,0.342071,102320.0,102310.0,0.146613]
[1738155733855,0.342071,102320.0,102300.0,0.80534616]
[1738155734055,0.342071,102320.0,102310.0,0.146613]
[1738155734259,0.146598,102320.0,102310.0,0.146613]
[1738155734617,0.60514461,102330.0,102310.0,0.342093]
[1738155734852,0.146598,102320.0,102310.0,0.146613]
[1738155735104,0.146598,102320.0,102300.0,0.60984716]
[1738155735288,0.342067,102320.0,102310.0,0.146613]
[1738155735711,0.80060961,102330.0,102310.0,0.342094]
[1738155735899,0.85238961,102330.0,102310.0,0.342094]
[1738155736216,0.85038961,102330.0,102310.0,0.342094]
[1738155736418,0.65392661,102330.0,102310.0,0.147613]
[1738155736619,0.146598,102320.0,102310.0,0.147613]
[1738155736823,0.141598,102320.0,102310.0,0.146613]
[1738155738054,0.141598,102320.0,102310.0,1.12212758]
[1738155738493,0.1417402,102320.0,102310.0,1.12212758]
[1738155738697,0.0001422,102320.0,102310.0,1.12212758]
[1738155738889,0.0001422,102320.0,102310.0,1.12312758]
[1738155739108,0.1467402,102320.0,102310.0,1.12312758]
[1738155739961,0.0001422,102320.0,102310.0,1.12312758]
[1738155740594,0.1467402,102320.0,102310.0,1.12312758]
[1738155741071,0.1467402,102320.0,102310.0,0.001]
[1738155741072,0.25790271,102320.0,102310.0,0.001]
[1738155741269,0.1467402,102320.0,102310.0,0.001]
[1738155743647,0.37814587,102320.0,102310.0,0.001]
[1738155743853,0.42590143,102320.0,102310.0,0.001]
[1738155744451,0.57590143,102320.0,102310.0,0.001]
[1738155744659,0.42930343,102320.0,102290.0,1.1224532]
[1738155744859,0.146627,102300.0,102290.0,1.1224532]
[1738155746363,0.148627,102300.0,102290.0,1.1224532]
[1738155746697,0.002,102300.0,102290.0,1.1224532]
[1738155747834,0.003,102300.0,102290.0,1.1224532]
[1738155750548,0.33727016,102300.0,102290.0,0.9758132]
[1738155750759,0.80490306,102300.0,102290.0,0.00029862]
[1738155750972,0.14667,102270.0,102260.0,0.97551458]
[1738155751205,0.14667,102270.0,102240.0,0.95989777]
[1738155751206,0.146699,102250.0,102240.0,1.10525688]
[1738155751412,0.146699,102250.0,102240.0,1.05775688]
[1738155751646,0.146699,102250.0,102240.0,0.0001423]
[1738155752287,0.586776,102260.0,102240.0,0.1468553]
[1738155752288,0.733473,102260.0,102240.0,0.1468553]
[1738155752495,0.537877,102260.0,102240.0,0.00062737]
[1738155752728,0.146699,102250.0,102240.0,0.00062737]
[1738155752937,0.537877,102260.0,102240.0,0.14733937]
[1738155753145,0.733469,102260.0,102240.0,0.14733937]
[1738155753353,0.733469,102260.0,102240.0,0.14833937]
[1738155753557,0.146699,102250.0,102240.0,0.14833937]
[1738155754473,0.146699,102250.0,102240.0,0.14733937]
[1738155754653,0.734467,102260.0,102240.0,0.14733937]
[1738155754869,0.540877,102260.0,102240.0,0.14733937]
[1738155755071,0.734469,102260.0,102240.0,0.14733937]
[1738155755291,0.537877,102260.0,102240.0,0.14733937]
[1738155755496,0.733469,102260.0,102240.0,0.14833937]
[1738155755695,0.733393,102270.0,102250.0,0.146696]
[1738155755851,0.146684,102260.0,102250.0,0.146696]
[1738155756201,0.344264,102260.0,102240.0,0.63579153]
[1738155756358,0.344264,102260.0,102250.0,0.97551458]
[1738155757704,0.392044,102260.0,102250.0,0.97551458]
[1738155757968,0.392044,102260.0,102250.0,0.97851458]
[1738155758262,0.50118207,102260.0,102250.0,0.97851458]
[1738155758445,0.391044,102260.0,102250.0,0.004]
[1738155761933,0.391044,102260.0,102250.0,0.00429883]
[1738155765158,0.62142523,102260.0,102250.0,0.00429883]
[1738155768787,0.77142523,102260.0,102250.0,0.00429883]
[1738155770881,0.93618199,102260.0,102250.0,8.3e-07]
[1738155771084,0.169742,102220.0,102210.0,0.0375]
[1738155771291,0.28090451,102220.0,102210.0,0.03764463]
[1738155771578,0.169742,102220.0,102210.0,0.03764463]
[1738155773817,0.146742,102220.0,102210.0,0.03764463]
[1738155773972,0.146742,102220.0,102210.0,0.18840063]
[1738155774185,0.146742,102220.0,102210.0,0.27130063]
[1738155774383,0.538014,102230.0,102210.0,0.46697163]
[1738155774582,0.733662,102230.0,102210.0,0.66263863]
[1738155774788,0.538014,102230.0,102210.0,0.66293746]
[1738155775199,0.733662,102230.0,102210.0,0.65993746]
[1738155775433,0.01801497,102220.0,102210.0,0.26759946]
[1738155776792,0.06679497,102220.0,102210.0,0.26759946]
[1738155776995,0.06679497,102220.0,102210.0,1.24311404]
[1738155777269,0.06679497,102220.0,102210.0,1.29071404]
[1738155777381,0.06679497,102220.0,102210.0,1.29371404]
[1738155778282,0.04878,102220.0,102210.0,1.29371404]
[1738155778550,0.195522,102220.0,102210.0,0.31819946]
[1738155780335,0.195522,102220.0,102210.0,0.12484346]
[1738155780594,0.195522,102220.0,102210.0,0.04194346]
[1738155780787,0.195522,102220.0,102210.0,0.18869946]
[1738155781391,0.195522,102220.0,102210.0,0.04194346]
[1738155782396,0.195522,102220.0,102210.0,0.04835702]
[1738155782606,0.195522,102220.0,102210.0,0.19511302]
[1738155782830,0.04878,102220.0,102210.0,0.19511302]
[1738155784536,0.04878,102220.0,102210.0,0.42435618]
[1738155786338,0.04878,102220.0,102210.0,0.32711302]
[1738155786521,0.195522,102220.0,102210.0,0.32711302]